{"text_format":"1","workbook":"xlsx","n_sheets":9,"sheets":["DatiGen","Computo Metrico","Controlli","Attestazione x Fornitura_Posa","Asseverazione x Spesa Ammessa","Listino Base","Decreto MITE","Allegato A","FAQ Enea e MITE"],"not_rendered":{"charts":0,"images":20,"macros":1,"external_links":0,"defined_names":40,"comments":1,"pivot_tables":0},"unopened":[],"bounds":{"document_bytes":16777216,"sheet_cells":100000,"rows_first":2000,"rows_last":500,"rows_between":2000,"halvings":0,"cell_chars":16384,"cell_head_chars":4096},"cells_cut":0,"cells_raw":0,"read":"whole","date_system":"1900"}

{"sheet":"DatiGen","index":0,"n_rows":45,"n_cols":26,"rows_kept":45,"cut":false,"hidden":false,"merged":[[18,16,18,25],[19,16,19,25],[16,16,16,25],[15,16,15,25],[17,16,17,25],[5,18,5,20],[5,22,5,25],[5,16,5,17],[10,18,10,20],[10,22,10,25],[6,18,6,25],[40,1,40,3],[40,4,40,5],[40,9,40,10],[19,1,19,2],[19,3,19,7],[19,10,19,13],[29,1,29,2],[23,3,23,13],[24,1,24,2],[24,3,24,13],[25,12,25,13],[31,12,31,13],[30,1,30,13],[29,5,29,7],[28,1,28,13],[33,1,33,2],[33,3,33,13],[31,3,31,4],[25,5,25,6],[19,8,19,9],[36,1,36,3],[31,5,31,11],[23,1,23,2],[37,1,37,3],[4,16,4,17],[6,16,6,17],[7,16,7,17],[11,16,11,17],[8,16,8,17],[9,16,9,17],[10,16,10,17],[7,18,7,25],[14,24,14,25],[13,24,13,25],[14,18,14,22],[13,18,13,22],[12,18,12,25],[4,18,4,23],[11,18,11,23],[8,18,8,20],[8,22,8,25],[9,18,9,20],[9,22,9,25],[18,3,18,7],[18,10,18,13],[25,8,25,9],[25,3,25,4],[17,1,17,2],[17,3,17,7],[17,10,17,13],[13,8,13,9],[18,8,18,9],[17,8,17,9],[13,1,13,2],[13,3,13,7],[13,10,13,13],[16,1,16,2],[16,3,16,13],[37,8,37,9],[38,1,38,3],[38,8,38,9],[39,8,39,9],[1,1,1,10],[14,16,14,17],[12,16,12,17],[29,3,29,4],[5,1,5,13],[6,1,6,13],[11,1,11,2],[11,3,11,13],[12,1,12,2],[12,3,12,13],[13,16,13,17],[22,1,22,2],[22,3,22,13],[4,1,4,13],[10,1,10,2],[10,3,10,13],[7,1,7,2],[7,3,7,13],[36,8,36,9],[18,1,18,2],[43,1,43,3],[43,4,43,5],[43,9,43,10],[41,1,41,3],[41,4,41,5],[41,9,41,10],[42,1,42,3],[42,4,42,5],[42,9,42,10]]}
[]
[null,null,null,null,null,null,null,null,null,null,null,"ACPM","V.ne","2024.1.0"]
[]
[null,"Lavori di",null,null,null,null,null,null,null,null,null,null,null,null,null,null,"Tecnico Asseveratore"]
[null,"Sostituzione impianto termico nel comune di XXXXXXXXXX - Via xxxxxxxxxx, 70 al Fg.xx - Mapp.xxx",null,null,null,null,null,null,null,null,null,null,null,null,null,null,"Titolo",null,"Ingegnere",null,null,null,null,null,"abbr.","Ing."]
[null,null,null,null,null,null,null,null,null,null,null,null,null,null,null,null,"Cognome",null,null,null,null,"Nome"]
[null,null,null,null,null,null,null,null,null,null,null,null,null,null,null,null,"Indirizzo"]
[null,"Titolo Abilitativo",null,"CILA Prot. N. 000000000 del 29/09/2023",null,null,null,null,null,null,null,null,null,null,null,null,"Città"]
[null,null,null,null,null,null,null,null,null,null,null,null,null,null,null,null,"Nato a",null,null,null,null,"il"]
[null,"Fornitore / Ditta",null,null,null,null,null,null,null,null,null,null,null,null,null,null,"Residente a",null,null,null,null,"Indirizzo"]
[null,"Rag. Sociale",null,null,null,null,null,null,null,null,null,null,null,null,null,null,"Codice Fiscale",null,null,null,null,"P.Iva"]
[null,"Indirizzo",null,null,null,null,null,null,null,null,null,null,null,null,null,null,"Albo / N.Iscrizione",null,"Ordine degli Ingegneri della provincia di XXXXXXX",null,null,null,null,null,"N."]
[null,"Città",null,null,null,null,null,null,null,null,null,null,null,null,null,null,"Mail / PEC"]
[null,"Codice Fiscale",null,null,null,null,null,null,"P.Iva",null,null,null,null,null,null,null,"Polizza Professionale",null,null,null,null,null,null,"Scadenza","2025-06-01"]
[null,null,null,null,null,null,null,null,null,null,null,null,null,null,null,null,"Compagnia Assicurat.",null,null,null,null,null,null,"Massimale",1500000]
[null,"Committente",null,null,null,null,null,null,null,null,null,null,null,null,null,true]
[null,"Cognome Nome",null,null,null,null,null,null,null,null,null,null,null,null,null,1,"Versione Demo"]
[null,"Nato a",null,null,null,null,null,null,"il",null,null,null,null,null,null,null,"nActivate= 4 on PC: \"PC-MARIO3\""]
[null,"Residente a",null,null,null,null,null,null,"Indirizzo",null,null,null,null,null,null,null,"Acquista ACPM"]
[null,"Codice Fiscale",null,null,null,null,null,null,"Tel./Mail",null,null,null,null,null,null,null,"https://www.madosoft.it/prodotti/superbonus/spesa-detraibile-ammessa/asseverazione-congruita-spese"]
[]
[null,"Immobile"]
[null,"Tipologia",null,"Unità Immobiliare"]
[null,"Indirizzo"]
[null,"Città"]
[null,"Dati Catastali: FOGLIO",null,12,null,"P.LLA",null,533,"SUB.",null,null,"CAT."]
[]
[null,"Tipologia Intervento"]
[null,"Impianti di riscaldamento con caldaie ad acqua a condensazione e/o generatori di aria calda a condensazione Pnom>35kWt"]
[null,"Superf. Riscaldata    mq.",null,120,null,true,null,null,true,null,null,false]
[null,"Fornitura della caldaia, canna fumaria e, ove previsto, sistema di termoregolazione evoluti, sistema di pompaggio, sistema di trattamento dell’acqua, componentistica dell’impianto idraulico ed elettrico, compresi serbatoi di accumulo, etc."]
[null,"Potenza nominale","kWt",24,null,"Spesa Ammissibile DL.34/2020 e smi : ",null,null,null,null,null,null,30000]
[]
[null,"Riferimento Prezzi ",null,"Prezzario DEI 2024- Impianti tecnologici"]
[]
[null,"Spese specifiche",null,null,null,null,null,null,null,null,null,{"$f":"L40/I40","v":0.1}]
[null,"Fattura per Fornitura e posa N.",null,null,288,"del","2023-11-27","Importo",{"$f":"ImportoComputo_FP+ImportoComputo_SicFP","v":6782.4000000000005},null,"IVA",{"$f":"I37*0.1","v":678.24000000000012},"Totale",{"$f":"I37+L37","v":7460.64}]
[null,null,null,null,null,null,null,null,null,null,null,null,null,{"$f":"I38+L38","v":0}]
[null,null,null,null,null,null,null,null,null,null,null,null,null,{"$f":"I39+L39","v":0}]
[null,null,null,null,null,null,null,"Sommano:",{"$f":"SUM(I37:J39)","v":6782.4000000000005},null,"IVA",{"$f":"SUM(L37:L39)","v":678.24000000000012},"Totale",{"$f":"SUM(N37:N39)","v":7460.64}]
[null,"Spese Tecniche:",null,null,"Imponibile",null,0,"Aliq. Iva",0.22,"IVA",null,{"$f":"G41*I41","v":0},"Totale",{"$f":"G41+L41","v":0}]
[null,null,null,null,null,null,null,null,null,null,null,null,null,{"$f":"G42+L42","v":0}]
[null,null,null,null,null,null,null,null,null,null,null,null,null,{"$f":"G43+L43","v":0}]
[null,null,null,null,"Sommano:",null,{"$f":"SUM(G41:G43)","v":0},"Aliq. Iva",{"$f":"SUM(I41:I43)/3","v":7.3333333333333334E-2},"IVA",null,{"$f":"SUM(L41:L43)","v":0},"Totale",{"$f":"SUM(N41:N43)","v":0}]
[null,null,null,null,null,null,null,null,null,null,null,null,null,null,null,null,"Versione Demo"]

{"sheet":"Computo Metrico","index":1,"n_rows":53,"n_cols":26,"rows_kept":53,"cut":false,"hidden":false,"merged":[[49,2,49,3],[48,2,48,3],[42,1,42,15],[45,8,45,9],[46,8,46,9],[47,12,48,15],[46,6,46,7],[45,6,45,7],[30,2,30,7],[19,2,19,7],[20,2,20,7],[21,2,21,7],[22,2,22,7],[23,2,23,7],[24,2,24,7],[25,2,25,7],[26,2,26,7],[27,2,27,7],[38,2,38,7],[39,2,39,7],[31,2,31,7],[32,2,32,7],[33,2,33,7],[34,2,34,7],[1,23,10,23],[1,24,10,24],[1,25,10,25],[44,8,44,9],[1,21,10,21],[1,19,10,19],[1,20,10,20],[5,2,5,9],[7,2,7,11],[44,6,44,7],[35,2,35,7],[36,2,36,7],[18,2,18,7],[1,18,10,18],[1,15,10,15],[1,12,10,12],[1,13,10,13],[1,14,10,14],[50,8,50,15],[49,8,49,9],[3,1,3,11],[4,1,4,11],[44,12,44,15],[46,12,46,15],[49,12,49,15],[47,6,47,7],[48,6,48,7],[47,8,47,9],[48,8,48,9],[45,12,45,15],[28,2,28,7],[29,2,29,7],[1,0,39,0],[7,1,9,1],[16,2,16,7],[17,2,17,7],[2,1,2,11],[1,1,1,11],[11,2,11,7],[12,2,12,7],[13,2,13,7],[14,2,14,7],[15,2,15,7],[6,2,6,11],[8,2,8,11],[9,2,9,11],[10,2,10,7],[37,2,37,7]]}
[]
[{"$f":"CONCATENATE(\"ACPM  Vers.\",Versione,\" ©2022 SIM srl\")","v":"ACPM  Vers.2024.1.0 ©2022 SIM srl"},"COMPUTO METRICO",null,null,null,null,null,null,null,null,null,null,"Incidenza Manodopera","Fornitura e Posa","Altro / Opere complementari","Opere Installazione / Oneri Sicurezza",null,null,"Importo Manodopera","Importo Fornitura e Posa","Importo Altre Opere","Importo Sicurezza",null,"Manopera Voci Fornitura e Posa","Manopera Voci Altro","Manopera Voci Sicurezza"]
[null,{"$f":"IF(DatiGen!B5<>\"\",CONCATENATE(\"Lavori di \",DatiGen!B5),\"\")","v":"Lavori di Sostituzione impianto termico nel comune di XXXXXXXXXX - Via xxxxxxxxxx, 70 al Fg.xx - Mapp.xxx"}]
[null,{"$f":"IF(DatiGen!B6<>\"\",DatiGen!B6,\"\")","v":""}]
[null,{"$f":"IF(DatiGen!B7<>\"\",DatiGen!B7,\"\")","v":""}]
[null,{"$f":"DatiGen!B28","v":"Tipologia Intervento"},{"$f":"DatiGen!B29","v":"Impianti di riscaldamento con caldaie ad acqua a condensazione e/o generatori di aria calda a condensazione Pnom>35kWt"},null,null,null,null,null,null,null,{"$f":"CONCATENATE(DatiGen!B32,\" \",DatiGen!C32)","v":"Potenza nominale kWt"},{"$f":"IF(nLicenza=\"Versione Demo\",1000,DatiGen!D32)","v":1000}]
[null,{"$f":"DatiGen!B16","v":"Committente"},{"$f":"DatiGen!D17","v":0}]
[null,{"$f":"DatiGen!Q4","v":"Tecnico Asseveratore"},{"$f":"CONCATENATE(DatiGen!Z5,\" \", DatiGen!S6, \" \", DatiGen!W6)","v":"Ing.  "}]
[null,null,{"$f":"CONCATENATE(DatiGen!S7,\" , \",DatiGen!S8)","v":" , "}]
[null,null,{"$f":"CONCATENATE(\"Iscritto a : \",DatiGen!S12)","v":"Iscritto a : Ordine degli Ingegneri della provincia di XXXXXXX"}]
[null,"Tariffa","Descrizione",null,null,null,null,null,"U.M.","Quantità","Prezzo Un.","Prezzo"]
[null,{"$f":"'Listino Base'!B3","v":"025015a"},"Caldaia",null,null,null,null,null,{"$f":"'Listino Base'!E3","v":"cad"},1,{"$f":"'Listino Base'!F3","v":2269.62},{"$f":"J12*K12","v":2269.62},0.25,true,false,false,null,{"$f":"IF(SUM(T12:V12)<>L12,\"Indicare ▣ 1 voce\",\"\")","v":""},{"$f":"M12*L12","v":567.40499999999997},{"$f":"IF(N12=TRUE,L12,0)","v":2269.62},{"$f":"IF(O12=TRUE,L12,0)","v":0},{"$f":"IF(P12=TRUE,L12,0)","v":0},null,{"$f":"IF(N12=TRUE,L12*M12,0)","v":567.40499999999997},{"$f":"IF(O12=TRUE,L12*M12,0)","v":0},{"$f":"IF(P12=TRUE,L12*M12,0)","v":0}]
[null,{"$f":"'Listino Base'!B4","v":"21.01.25"},"Accumulo ACS",null,null,null,null,null,{"$f":"'Listino Base'!E4","v":"cad"},1,{"$f":"'Listino Base'!F4","v":821.47},{"$f":"K13*J13","v":821.47},0.22,true,false,false,null,{"$f":"IF(SUM(T13:V13)<>L13,\"Indicare ▣ 1 voce\",\"\")","v":""},180.7234,821.47,0,0,null,180.7234,0,0]
[null,{"$f":"'Listino Base'!B5","v":"N.P.001.080"},"Condotto flessibile in PPS da 80mm per scarico fumi completo di accessori",null,null,null,null,null,"cad",6,{"$f":"'Listino Base'!F5","v":68.87},{"$f":"K14*J14","v":413.22},0.22,true,false,false,null,"",90.9084,413.22,0,0,null,90.9084,0,0]
[null,{"$f":"'Listino Base'!B6","v":"025214c"},"Radiatori tubolari",null,null,null,null,null,"cad",4,{"$f":"'Listino Base'!F6","v":556.05999999999995},{"$f":"K15*J15","v":2224.2399999999998},0.08,true,false,false,null,"",177.9392,2224.2399999999998,0,0,null,177.9392,0,0]
[null,{"$f":"'Listino Base'!B7","v":"025090b"},{"$f":"'Listino Base'!D7","v":"Tubi in rame coibentato sottotraccia per riscaldamento"},null,null,null,null,null,"m",50,{"$f":"'Listino Base'!F7","v":8.65},{"$f":"K16*J16","v":432.5},0.39,true,false,false,null,"",168.67500000000001,432.5,0,0,null,168.67500000000001,0,0]
[null,{"$f":"'Listino Base'!B8","v":"015024d"},{"$f":"'Listino Base'!D8","v":"Tubi in rame a vista per riscaldamento"},null,null,null,null,null,"m",4,{"$f":"'Listino Base'!F8","v":27.53},110.12,0.34,true,false,false,null,"",37.440800000000003,110.12,0,0,null,37.440800000000003,0,0]
[null,{"$f":"'Listino Base'!B9","v":"025100a"},{"$f":"'Listino Base'!D9","v":"Coibentazione Tubi rame a vista per riscaldamento"},null,null,null,null,null,"cad",4,{"$f":"'Listino Base'!F9","v":11.14},44.56,0.63,true,false,false,null,"",28.072800000000001,44.56,0,0,null,28.072800000000001,0,0]
[null,{"$f":"'Listino Base'!B10","v":"025110b"},"Collettore di distribuzione riscaldamento",null,null,null,null,null,"cad",1,{"$f":"'Listino Base'!F10","v":466.67},466.67,0.15,true,false,false,null,"",70.000500000000002,466.67,0,0,null,70.000500000000002,0,0]
[null,"A25026b","Fori per carotaggi linea gas e riscaldamento",null,null,null,null,null,"cad",{"$f":"2*J13","v":2},{"$f":"'Listino Base'!F11","v":267.18},534.36,0.82,false,true,false,null,"",438.17519999999996,0,534.36,0,null,0,438.17519999999996,0]
[null,"015203c","Tubo linea gas in rame",null,null,null,null,null,"m",20,{"$f":"'Listino Base'!F12","v":19.79},{"$f":"J21*K21","v":395.79999999999995},0.22,false,true,false,null,"",87.075999999999993,0,395.79999999999995,0,null,0,87.075999999999993,0]
[null,"015212a",{"$f":"'Listino Base'!D13","v":"Valvole linea gas"},null,null,null,null,null,"cad",2,{"$f":"'Listino Base'!F13","v":120.89},{"$f":"J22*K22","v":241.78},0.24,false,true,false,null,"",58.027200000000001,0,241.78,0,null,0,58.027200000000001,0]
[null,{"$f":"'Listino Base'!B14","v":"015032b"},{"$f":"'Listino Base'!D14","v":"Riduttore di pressione gas"},null,null,null,null,null,"cad",1,{"$f":"'Listino Base'!F14","v":113.32},{"$f":"J23*K23","v":113.32},0.2,false,true,false,null,"",22.664000000000001,0,113.32,0,null,0,22.664000000000001,0]
[null,{"$f":"'Listino Base'!B15","v":"A25038b"},{"$f":"'Listino Base'!D15","v":"Scavo tracce per passaggio tubazioni riscaldamento"},null,null,null,null,null,"m",50,{"$f":"'Listino Base'!F15","v":30.59},{"$f":"K24*J24","v":1529.5},0.91,false,true,false,null,"",1391.845,0,1529.5,0,null,0,1391.845,0]
[null,null,null,null,null,null,null,null,null,0,{"$f":"'Listino Base'!F16","v":0},0,null,false,false,null,null,"",0,0,0,0,null,0,0,0]
[null,null,null,null,null,null,null,null,null,0,{"$f":"'Listino Base'!F17","v":0},0,null,false,false,null,null,"",0,0,0,0,null,0,0,0]
[null,null,null,null,null,null,null,null,null,0,{"$f":"'Listino Base'!F18","v":0},0,null,false,false,null,null,"",0,0,0,0,null,0,0,0]
[null,null,null,null,null,null,null,null,null,0,{"$f":"'Listino Base'!F19","v":0},0,null,false,false,false,null,"",0,0,0,0,null,0,0,0]
[null,null,null,null,null,null,null,null,null,0,{"$f":"'Listino Base'!F20","v":0},0,null,false,false,false,null,"",0,0,0,0,null,0,0,0]
[null,null,null,null,null,null,null,null,null,0,{"$f":"'Listino Base'!F21","v":0},0,null,false,false,false,null,"",0,0,0,0,null,0,0,0]
[null,null,null,null,null,null,null,null,null,0,{"$f":"'Listino Base'!F22","v":0},0,null,false,false,false,null,"",0,0,0,0,null,0,0,0]
[null,null,null,null,null,null,null,null,null,0,0,0,null,false,false,false,null,"",0,0,0,0,null,0,0,0]
[null,null,null,null,null,null,null,null,null,0,0,0,null,false,false,false,null,"",0,0,0,0,null,0,0,0]
[null,null,null,null,null,null,null,null,null,0,0,0,null,false,false,false,null,"",0,0,0,0,null,0,0,0]
[null,null,null,null,null,null,null,null,null,0,0,0,null,false,false,false,null,"",0,0,0,0,null,0,0,0]
[null,null,null,null,null,null,null,null,null,0,0,0,null,false,false,false,null,"",0,0,0,0,null,0,0,0]
[null,null,null,null,null,null,null,null,null,0,0,0,null,false,false,false,null,"",0,0,0,0,null,0,0,0]
[null,null,null,null,null,null,null,null,null,0,0,0,null,false,false,false,null,"",0,0,0,0,null,0,0,0]
[null,null,null,null,null,null,null,null,null,0,0,0,null,false,false,false,null,"",0,0,0,0,null,0,0,0]
[null,null,null,null,null,null,null,null,null,0,0,0,null,false,false,false,null,"",0,0,0,0,null,0,0,0]
[null,null,null,null,null,null,null,null,null,null,null,{"$f":"SUM(L12:L40)","v":9597.16},null,null,null,null,null,null,{"$f":"SUM(S12:S40)","v":3318.9525000000003},{"$f":"SUM(T12:T40)","v":6782.4000000000005},2814.76,0,null,{"$f":"SUM(X12:X40)","v":1321.1651000000002},1997.7873999999999,0]
[]
[null,"Riepilogo Computo Metrico"]
[]
[null,null,null,"Sommano i Lavori : ",{"$f":"L41","v":9597.16},"è","di cui ",null,"Importo",null,"Materiale","Manodopera","Opere Installaz./Sicurezza"]
[null,null,"IVA",0.1,{"$f":"E45*D46","v":959.71600000000001},null,"Fornitura e Posa",null,{"$f":"T41","v":6782.4000000000005},null,{"$f":"I46-L46","v":5461.2349000000004},{"$f":"X41","v":1321.1651000000002},{"$f":"V41*I46/(E45-V41)","v":0}]
[null,null,null,"Totale : ",{"$f":"SUM(E45:E46)","v":10556.876},null,"Altro / Opere Complementari",null,{"$f":"U41","v":2814.76},null,{"$f":"I47-L47","v":816.97260000000028},{"$f":"Y41","v":1997.7873999999999},{"$f":"V41*I47/(E45-V41)","v":0}]
[null,null,null,null,null,null,"Opere Installazione/Oneri Sicurezza x Fornitura e Posa",null,{"$f":"M46","v":0},null,{"$f":"I48-L48","v":0},{"$f":"IF(V41<>0,Z41*I48/V41,0)","v":0}]
[null,null,"Spese Tecniche : imponibile ",null,{"$f":"DatiGen!G44","v":0},null,"Opere Installazione/Oneri Sicurezza x Altro/Complem.",null,{"$f":"M47","v":0},null,{"$f":"I49-L49","v":0},{"$f":"IF(V41<>0,Z41*I49/V41,0)","v":0}]
[null,null,"IVA ",null,{"$f":"DatiGen!L44","v":0},null,null,null,{"$f":"SUM(I46:J49)","v":9597.16},null,{"$f":"SUM(K46:K47)","v":6278.2075000000004},{"$f":"SUM(L46:L47)","v":3318.9525000000003},{"$f":"SUM(M46:P49)","v":0}]
[null,null,null,"Totale ",{"$f":"SUM(E49:E50)","v":0},null,null,null,{"$f":"IF(M50<>V41,\"Attenzione! Opere Installazione/Oneri Sicurezza Non Ripartiti correttamente\",\"\")","v":""}]
[]
[null,null,null,"Importo Complessivo : ",{"$f":"IF(nLicenza=\"Versione Demo\",-10,TotaleSpeseTecniche+TotaleLavori)","v":-10}]

{"sheet":"Controlli","index":2,"n_rows":61,"n_cols":26,"rows_kept":61,"cut":false,"hidden":false,"merged":[[21,8,21,9],[51,1,51,6],[18,1,18,4],[19,1,19,4],[20,1,20,4],[27,1,27,2],[24,1,24,2],[24,7,24,8],[24,9,24,10],[26,1,26,2],[26,7,26,8],[26,9,26,10],[31,13,31,15],[57,13,57,15],[27,9,27,10],[53,7,53,9],[50,10,50,11],[51,10,51,11],[52,10,52,11],[53,10,53,11],[49,7,49,9],[50,7,50,9],[51,7,51,9],[52,7,52,9],[27,7,27,8],[49,12,49,15],[18,21,19,21],[18,18,19,18],[18,19,19,19],[18,17,19,17],[29,13,29,15],[19,13,19,15],[20,13,20,15],[18,13,18,15],[21,17,21,24],[27,17,27,24],[27,13,27,15],[21,13,21,15],[23,13,23,15],[60,13,60,15],[56,13,56,15],[53,13,53,15],[55,13,55,15],[50,13,50,15],[51,13,51,15],[52,13,52,15],[59,13,59,15],[2,2,2,4],[2,5,2,15],[6,0,27,0],[35,0,56,0],[32,13,32,15],[33,13,33,15],[14,1,14,12],[14,13,14,15],[23,1,23,12],[17,1,17,12],[17,13,17,15],[15,13,15,15],[15,1,15,12],[18,7,18,12],[27,11,27,12],[49,10,49,11],[26,11,26,12],[26,13,26,15],[24,11,24,12],[24,13,24,15],[25,1,25,2],[25,7,25,8],[25,9,25,10],[25,11,25,12],[25,13,25,15]]}
[]
[null,{"$f":"DatiGen!B5","v":"Sostituzione impianto termico nel comune di XXXXXXXXXX - Via xxxxxxxxxx, 70 al Fg.xx - Mapp.xxx"}]
[null,"Committente",{"$f":"DatiGen!D17","v":0},null,null,{"$f":"CONCATENATE(DatiGen!K19,\" \",DatiGen!D19)","v":" "}]
[]
[null,"VERIFICA 1 - Attestazione per Fornitura e Posa\"",null,null,null,null,"Ditta:",{"$f":"CONCATENATE(DatiGen!D11,\" - \",DatiGen!D13)","v":" - "}]
[]
[{"$f":"CONCATENATE(\"ACPM  Vers.\",Versione,\" ©2022 SIM srl\")","v":"ACPM  Vers.2024.1.0 ©2022 SIM srl"}]
[]
[]
[]
[]
[]
[]
[]
[null,"CONTROLLO 1 - Opera Compiuta / Prezzario",null,null,null,null,null,null,null,null,null,null,null,"Importo Netto"]
[null,{"$f":"CONCATENATE(\"Importo Opera Compiuta (Computo Metrico) determinato con \",IF(DatiGen!D34<>\"\",DatiGen!D34,\" ??\"))","v":"Importo Opera Compiuta (Computo Metrico) determinato con Prezzario DEI 2024- Impianti tecnologici"},null,null,null,null,null,null,null,null,null,null,null,{"$f":"'Computo Metrico'!E45","v":9597.16},null,null,{"$f":"IF(DatiGen!D34<>\"\",\"☺\",\"🙁\")","v":"☺"},{"$f":"IF(DatiGen!D34<>\"\",\"\",\"Specificare Prezzari di Riferimento in DatiGen cella D20\")","v":""}]
[]
[null,"CONTROLLO 2 - DM. Costi Massimi",null,null,null,null,null,null,null,null,null,null,null,"Importo Netto"]
[null,"Costo dei Beni Allegato A (fornitura)",null,null,null,216,{"$f":"CONCATENATE(\"/\",DatiGen!$C$32)","v":"/kWt"},"+ 180,00 €./mq. x mq.120,00",null,null,null,null,null,21600]
[null,"Opere relative alla installazione (sicurezza)",null,null,null,{"$f":"IF('Computo Metrico'!L6<>0,'Computo Metrico'!I48/'Computo Metrico'!L6,0)","v":0},{"$f":"G19","v":"/kWt"}]
[null,"Manodopera per l'installazione",null,null,null,{"$f":"IF('Computo Metrico'!L6<>0,'Computo Metrico'!L46/'Computo Metrico'!L6,0)","v":1.3211651000000002},{"$f":"G19","v":"/kWt"}]
[null,null,null,null,null,{"$f":"SUM(F19:F21)","v":217.3211651},{"$f":"G19","v":"/kWt"},{"$f":"CONCATENATE(\"x   \",DatiGen!C32)","v":"x   kWt"},{"$f":"DatiGen!D32","v":24},null,null,null,null,{"$f":"IF(N19<>\"\",F22*I22+N19,F22*I22)","v":26815.7079624},null,null,{"$f":"IF(N22>=SUM('Computo Metrico'!K46:P46),\"☺\",\"<\")","v":"☺"},{"$f":" IF(Q22=\"<\",\"Importo da computo per Fornitura e Posa (Materiale+Manodopera+Sicurezza) =\",\"\")","v":""},null,null,null,null,null,null,null,{"$f":"IF(Q22=\"<\",SUM('Computo Metrico'!K46:P46),\"\")","v":""}]
[]
[null,"CONTROLLO 3 - Spesa Sostenuta",null,null,null,null,null,null,null,null,null,null,null,"Importo Netto"]
[null,{"$f":"DatiGen!B37","v":"Fattura per Fornitura e posa N."},null,{"$f":"IF(DatiGen!E37<>\"\",DatiGen!E37,\"\")","v":288},"del",{"$f":"IF(DatiGen!G37<>\"\",DatiGen!G37,\"\")","v":"2023-11-27"},"Importo",{"$f":"IF(nLicenza=\"Versione Demo\",100,DatiGen!N37)","v":100},null,"di cui IVA ",null,{"$f":"IF(nLicenza=\"Versione Demo\",0,DatiGen!L37)","v":0},null,{"$f":"H25-L25","v":100}]
[null,{"$f":"DatiGen!B38","v":0},null,{"$f":"IF(DatiGen!E38<>\"\",DatiGen!E38,\"\")","v":""},"del",{"$f":"IF(DatiGen!G38<>\"\",DatiGen!G38,\"\")","v":""},"Importo",{"$f":"IF(nLicenza=\"Versione Demo\",100,DatiGen!N38)","v":100},null,"di cui IVA ",null,{"$f":"IF(nLicenza=\"Versione Demo\",0,DatiGen!L38)","v":0},null,100]
[null,{"$f":"DatiGen!B39","v":0},null,{"$f":"IF(DatiGen!E39<>\"\",DatiGen!E39,\"\")","v":""},"del",{"$f":"IF(DatiGen!G39<>\"\",DatiGen!G39,\"\")","v":""},"Importo",{"$f":"IF(nLicenza=\"Versione Demo\",100,DatiGen!N39)","v":100},null,"di cui IVA ",null,{"$f":"IF(nLicenza=\"Versione Demo\",0,DatiGen!L39)","v":0},null,{"$f":"H27-L27","v":100}]
[null,null,null,null,null,null,null,{"$f":"IF(nLicenza=\"Versione Demo\",100,DatiGen!N40)","v":100},null,"di cui IVA ",null,{"$f":"IF(nLicenza=\"Versione Demo\",0,DatiGen!L40)","v":0},null,{"$f":"H28-L28","v":100},null,null,{"$f":"IF(N28=0,\"🙁\",IF(N28>N16,\">\",\"☺\"))","v":"☺"},{"$f":"IF(N28=0,\"Specificare Importo\",IF(N28>N16,\"Importo Opera Compiuta da Computo Metrico = \",\"\"))","v":""},null,null,null,null,null,null,null,{"$f":"IF(Q28=\">\",N16,\"\")","v":""}]
[]
[null,null,null,null,null,null,null,null,null,null,null,null,"Spesa Massima Ammissibile = MIN(controllo1; controllo2; fattura)",{"$f":"MIN(N16,N22,N28)","v":100}]
[]
[null,null,null,null,null,null,null,null,null,null,null,null,"Quota Fattura per Fornitura e Posa Eccedente Spesa Massima (a Carico del Cliente)",{"$f":"IF(nLicenza=\"Versione Demo\",0,IF(N28-N30>0,N28-N30,0))","v":0},null,null,{"$f":"IF(N32<>0,\"+\",\"\")","v":""}]
[null,null,null,null,null,null,null,null,null,null,null,null,{"$f":"IF(N32<>0,\"IVA\",\"\")","v":""},{"$f":"IF(N32<>0,N32*AliqIvaMed,\"\")","v":""},null,null,{"$f":"IF(N32<>0,\"=\",\"\")","v":""}]
[null,null,null,null,null,null,null,null,null,null,null,null,null,{"$f":"IF(N32<>0,N32+N33,\"\")","v":""}]
[null,"VERIFICA 2 - Asseverazione per Spesa Ammessa\""]
[{"$f":"CONCATENATE(\"ACPM  Vers.\",Versione,\" ©2022 SIM srl\")","v":"ACPM  Vers.2024.1.0 ©2022 SIM srl"}]
[]
[]
[]
[]
[]
[]
[]
[]
[]
[]
[]
[]
[]
[null,"Spesa di Intervento",null,null,null,null,null,"Imponibile",null,null,"Iva",null,"Importo"]
[null,"Spesa massima ammissibile asseverata . . . . . . . . . . . . . . . . . . . . . . . . . . . .",null,null,null,null,null,{"$f":"N30","v":100},null,null,{"$f":"H51*'Computo Metrico'!D46","v":10},null,null,{"$f":"H51+K51","v":110}]
[null,{"$f":"IF(nLicenza=\"Versione Demo\",\". . . . . . . . . . .\",\"Prestazioni Professionali . . . . . . . . . . . . . . . . . . . . . . . . . . . . . . . . . . . . . . . . .\")","v":". . . . . . . . . . ."},null,null,null,null,null,{"$f":"'Computo Metrico'!E49","v":0},null,null,{"$f":"'Computo Metrico'!E50","v":0},null,null,{"$f":"H52+K52","v":0}]
[null,"Altri Costi  . . . . . . . . . . . . . . . . . . . . . . . . . . . . . . . . . . . . . .  . . . . . . . . . . . .",null,null,null,null,null,0,null,null,0,null,null,{"$f":"H53+K53","v":0}]
[null,null,null,null,null,null,null,{"$f":"SUM(H51:I53)","v":100},null,null,{"$f":"SUM(K51:L53)","v":10},null,null,{"$f":"SUM(N51:P53)","v":110}]
[]
[null,null,null,null,null,null,null,null,null,null,null,"Spesa di Intervento -      Decreto MITE","SI  =",{"$f":"N54","v":110}]
[null,null,null,null,null,null,null,null,null,null,null,"Spesa Massima ammissibile - Norma primaria ","SM =",{"$f":"IF(nLicenza=\"Versione Demo\",0,SpesaAmmessaDL34)","v":0}]
[null,null,null,null,null,null,null,null,null,null,null,null,"Spesa detraibile ammissibile = MIN(SI;SM) =",{"$f":"MIN(N54,N57)","v":0}]
[]
[null,null,null,null,null,null,null,null,null,null,null,null,"Importo Complessivo da Computo ",{"$f":"ImportoComplessivo","v":-10}]
[null,null,null,null,null,null,null,null,null,null,null,null,"Quota da Computo Eccedente Spesa Detraibile Ammissibile (a Carico del Cliente)",{"$f":"IF(N60-N58>0,N60-N58,0)","v":0}]

{"sheet":"Attestazione x Fornitura_Posa","index":3,"n_rows":49,"n_cols":19,"rows_kept":49,"cut":false,"hidden":false,"merged":[[8,1,8,5],[8,7,8,10],[8,16,8,18],[1,1,1,18],[2,1,2,18],[3,1,3,18],[5,4,5,7],[5,9,5,13],[5,15,5,16],[6,1,6,4],[7,9,7,13],[40,18,47,18],[48,1,48,18],[10,1,10,18],[11,1,11,18],[12,1,12,18],[14,5,14,11],[14,15,14,18],[27,15,27,17],[26,11,26,12],[26,5,26,7],[24,2,24,18],[27,2,27,10],[27,11,27,14],[37,1,37,5],[22,1,22,18],[23,8,23,10],[39,12,39,18],[37,12,37,18],[29,1,29,18],[32,8,32,10],[32,11,32,15],[32,16,32,18],[38,12,38,18],[16,9,16,10],[17,9,17,10],[15,14,15,16],[16,14,16,16],[17,14,17,16],[15,9,15,10]]}
[]
[null,"ATTESTAZIONE DI CONGRUITA' DELLE SPESE"]
[null,"ex art. 121 comma 1-ter, lett. b) ed art. 119 comma 13 bis DL 34/2020 conv. L. 77/2020 e D.M. Costi Massimi 14/02/2022"]
[null,"(articolo 3 del D.P.R. n. 300/1992 e degli articoli 46 e 47 del D.P.R. n. 445/2000)"]
[]
[null,"Il sottoscritto",null,null,{"$f":"CONCATENATE(AbbrevTitoloTec,\" \",CognomeTec,\" \",NomeTec)","v":"Ing.  "},null,null,null,", nato a",{"$f":"PaeseNascTec","v":0},null,null,null,null,",  il",{"$f":"DataNascTec","v":"00:00:00"},null,"e  residente  a"]
[null,{"$f":"PaeseResTec","v":0},null,null,null,", in qualità di  tecnico asseveratore  ex  art. 121  comma 1-ter,  lett. b)  ed  art. 119  comma 13 bis  DL 34/2020"]
[null,"conv. L. 77/2020 ,  in relazione agli interventi eseguiti   a favore di ",null,null,null,null,null,null,null,{"$f":"DatiGen!D17","v":0},null,null,null,null,",  sull’unità  immobiliare    sita  a  "]
[null,{"$f":"DatiGen!D25","v":0},null,null,null,null,", in",{"$f":"DatiGen!D24","v":0},null,null,null," e censita al N.C.E.U. del comune di ",null,null,null,null,{"$f":"B9","v":0}]
[null,"al foglio",null,{"$f":"DatiGen!D26","v":12},"p.lla",{"$f":"DatiGen!H26","v":533},"sub.",{"$f":"DatiGen!K26","v":0},"Categoria",null,{"$f":"DatiGen!M26","v":0},", relativamente ai lavori di :"]
[null,{"$f":"IF(DatiGen!B5<>\"\",DatiGen!B5,\"==========\")","v":"Sostituzione impianto termico nel comune di XXXXXXXXXX - Via xxxxxxxxxx, 70 al Fg.xx - Mapp.xxx"}]
[null,{"$f":"IF(DatiGen!B6<>\"\",DatiGen!B6,\"==========\")","v":"=========="}]
[null,{"$f":"IF(DatiGen!B7<>\"\",DatiGen!B7,\"==========\")","v":"=========="}]
[null,"eseguiti dalla ditta",null,null,null,{"$f":"DatiGen!D11","v":0}]
[null,"di cui al titolo abilitativo,",null,null,null,{"$f":"DatiGen!D8","v":"CILA Prot. N. 000000000 del 29/09/2023"},null,null,null,null,null,null,"presentato al Comune di ",null,null,{"$f":"Q9","v":0}]
[null,"per  l'importo  di  euro ",null,null,null,{"$f":"Controlli!H28","v":100},", di cui alle Fatture   N.",null,null,{"$f":"Controlli!D25","v":288},null,"del",{"$f":"Controlli!F25","v":"2023-11-27"},",   di  €.",{"$f":"Controlli!H25","v":100}]
[null,null,null,null,null,null,null,null,null,{"$f":"Controlli!D26","v":""},null,"del",{"$f":"Controlli!F26","v":""},",   di  €.",{"$f":"Controlli!H26","v":100}]
[null,null,null,null,null,null,null,null,null,{"$f":"Controlli!D27","v":""},null,"del",{"$f":"Controlli!F27","v":""},",   di  €.",{"$f":"Controlli!H27","v":100}]
[]
[null,"consapevole delle implicazioni penali previste dall’articolo 76 del D.P.R. n. 445/2000 e delle conseguenze di cui all’articolo 21 della legge "]
[null," n. 241/1990 in caso di dichiarazioni mendaci o false attestazioni, ai sensi dell’articolo 3 del D.P.R. n. 300/1992 e degli articoli 46 e 47 del "]
[null,"citato D.P.R. n. 445/2000, sotto la propria responsabilità,"]
[null,"DICHIARA"]
[null,"•","di essere in possesso della qualifica professionale di ",null,null,null,null,null,{"$f":"DatiGen!S5","v":"Ingegnere"},null,null,"e di essere iscritto all’Albo professionale :"]
[null,null,{"$f":"CONCATENATE(DatiGen!S12,\" con il numero di matricola \",DatiGen!Z12,\";\")","v":"Ordine degli Ingegneri della provincia di XXXXXXX con il numero di matricola ;"}]
[null,"•","di essere dotato di idonea copertura assicurativa ai sensi del D.L. 34/2020 convertito nella L.77/2020, ed in particolare di aver stipulato"]
[null,null,"la polizza professionale",null,null,{"$f":"DatiGen!S14","v":0},null,null,"    con scadenza al",null,null,{"$f":"DatiGen!Y14","v":"2025-06-01"},null,", con la  compagnia assicurativa"]
[null,null,{"$f":"DatiGen!S15","v":0},null,null,null,null,null,null,null,null,"con massimale pari a   euro",null,null,null,{"$f":"DatiGen!Y15","v":1500000}]
[null,null,"e che la medesima polizza è conforme ai requisiti previsti dal comma 14, del D.L. 34/2020 e s.m.i.;"]
[null,"ATTESTA"]
[null,"1. i requisiti tecnici sulla base del progetto e dell'effettiva realizzazione;"]
[null,"2. la congruità delle spese sostenute ed effettivamente realizzate con riferimento all’intervento sopra specificato, precisando che la Spesa"]
[null,"Detraibile Ammessa per la Fornitura e Posa è pari ad  EURO",null,null,null,null,null,null,{"$f":"IF(Controlli!N32>0,Controlli!N30*(1+AliqIvaMed),Controlli!H28)","v":100},null,null,{"$f":"IF(Controlli!N32>0,\", rimanendo a Carico Cliente   EURO\",\".\")","v":"."},null,null,null,null,{"$f":"IF(Controlli!N32>0,Controlli!N34,\"\")","v":""}]
[null,"Ai fini dell'asseverazione della congruità delle spese  si è fatto riferimento  ai valori massimi  per tipologia di intervento determinati con i "]
[null,"criteri previsti dal punto 13,  dell’allegato A  al  Decreto MISE 6 agosto 2020  (c.d. Decreto Requisiti) ,  emanato in conformità   all’art. 119 "]
[null,"comma 13, lettera a) DL 34/2020 e s.m.i."]
[]
[null,"Borgo Valbelluna, 14/08/2024",null,null,null,null,null,null,null,null,null,null,"In Fede"]
[]
[null,null,null,null,null,null,null,null,null,null,null,null,{"$f":"CONCATENATE(\"(\",E6,\")\")","v":"(Ing.  )"}]
[null,"Allegati:",null,null,null,null,null,null,null,null,null,null,null,null,null,null,null,null,{"$f":"CONCATENATE(\"ACPM  Vers.\",Versione,\" ©2022 SIM srl\")","v":"ACPM  Vers.2024.1.0 ©2022 SIM srl"}]
[null,"- Computo Metrico"]
[null,"- Calcolo Spesa Detraibile Ammissibile"]
[]
[]
[]
[]
[]
[null,"Ai sensi dell’art. 38, D.P.R. 445 del 28 dicembre 2000, la dichiarazione è resa insieme alla fotocopia, non autenticata del documento di identità del dichiarante"]

{"sheet":"Asseverazione x Spesa Ammessa","index":4,"n_rows":48,"n_cols":19,"rows_kept":48,"cut":false,"hidden":false,"merged":[[36,12,36,18],[37,12,37,18],[47,1,47,18],[30,1,30,5],[30,6,30,8],[30,14,30,17],[38,18,46,18],[26,1,26,18],[28,1,28,18],[35,1,35,5],[35,12,35,18],[20,8,20,10],[21,2,21,18],[23,5,23,7],[23,11,23,12],[24,2,24,10],[24,11,24,14],[24,15,24,17],[11,1,11,18],[12,1,12,18],[14,5,14,11],[14,15,14,18],[19,1,19,18],[10,1,10,18],[1,1,1,18],[2,1,2,18],[3,1,3,18],[5,4,5,7],[5,9,5,13],[5,15,5,16],[6,1,6,4],[7,9,7,13],[8,1,8,5],[8,7,8,10],[8,16,8,18]]}
[]
[null,"ASSEVERAZIONE DI CONGRUITA' DELLE SPESE"]
[null,"ex art. 121 comma 1-ter, lett. b) ed art. 119 comma 13 bis DL 34/2020 conv. L. 77/2020 e D.M. Costi Massimi 14/02/2022"]
[null,"(articolo 3 del D.P.R. n. 300/1992 e degli articoli 46 e 47 del D.P.R. n. 445/2000)"]
[]
[null,"Il sottoscritto",null,null,{"$f":"CONCATENATE(AbbrevTitoloTec,\" \",CognomeTec,\" \",NomeTec)","v":"Ing.  "},null,null,null,", nato a",{"$f":"IF(PaeseNascTec<>\"\",PaeseNascTec,\"\")","v":""},null,null,null,null,",  il",{"$f":"IF(DataNascTec<>\"\",DataNascTec,\"\")","v":""},null,"e  residente  a"]
[null,{"$f":"IF(PaeseResTec<>\"\",PaeseResTec,\"\")","v":""},null,null,null,", in qualità di  tecnico asseveratore  ex  art. 121  comma 1-ter,  lett. b)  ed  art. 119  comma 13 bis  DL 34/2020"]
[null,"conv. L. 77/2020 ,  in relazione agli interventi eseguiti   a favore di ",null,null,null,null,null,null,null,{"$f":"IF(DatiGen!D17<>\"\",DatiGen!D17,\"\")","v":""},null,null,null,null,",  sull’unità  immobiliare    sita  a  "]
[null,{"$f":"IF(DatiGen!D25<>\"\",DatiGen!D25,\"\")","v":""},null,null,null,null,", in",{"$f":"IF(DatiGen!D24<>\"\",DatiGen!D24,\"\")","v":""},null,null,null," e censita al N.C.E.U. del comune di ",null,null,null,null,{"$f":"B9","v":""}]
[null,"al foglio",null,{"$f":"IF(DatiGen!D26<>\"\",DatiGen!D26,\"\")","v":12},"p.lla",{"$f":"IF(DatiGen!H26<>\"\",DatiGen!H26,\"\")","v":533},"sub.",{"$f":"IF(DatiGen!K26<>\"\",DatiGen!K26,\"\")","v":""},"Categoria",null,{"$f":"IF(DatiGen!M26<>\"\",DatiGen!M26,\"\")","v":""},", relativamente ai lavori di :"]
[null,{"$f":"IF(DatiGen!B5<>\"\",DatiGen!B5,\"==========\")","v":"Sostituzione impianto termico nel comune di XXXXXXXXXX - Via xxxxxxxxxx, 70 al Fg.xx - Mapp.xxx"}]
[null,{"$f":"IF(DatiGen!B6<>\"\",DatiGen!B6,\"==========\")","v":"=========="}]
[null,{"$f":"IF(DatiGen!B7<>\"\",DatiGen!B7,\"==========\")","v":"=========="}]
[null,"eseguiti dalla ditta",null,null,null,{"$f":"IF(DatiGen!D11<>\"\",DatiGen!D11,\"\")","v":""}]
[null,"di cui al titolo abilitativo,",null,null,null,{"$f":"IF(DatiGen!D8<>\"\",DatiGen!D8,\"\")","v":"CILA Prot. N. 000000000 del 29/09/2023"},null,null,null,null,null,null,"presentato al Comune di ",null,null,{"$f":"Q9","v":""}]
[null,"per  l'importo  di  euro ",null,null,null,{"$f":"Controlli!N60","v":-10},", di cui al Computo Metrico allegato,"]
[null,"consapevole delle implicazioni penali previste dall’articolo 76 del D.P.R. n. 445/2000 e delle conseguenze di cui all’articolo 21 della legge "]
[null," n. 241/1990 in caso di dichiarazioni mendaci o false attestazioni, ai sensi dell’articolo 3 del D.P.R. n. 300/1992 e degli articoli 46 e 47 del "]
[null,"citato D.P.R. n. 445/2000, sotto la propria responsabilità,"]
[null,"DICHIARA"]
[null,"•","di essere in possesso della qualifica professionale di ",null,null,null,null,null,{"$f":"DatiGen!S5","v":"Ingegnere"},null,null,"e di essere iscritto all’Albo professionale :"]
[null,null,{"$f":"CONCATENATE(DatiGen!S12,\" con il numero di matricola \",DatiGen!Z12,\";\")","v":"Ordine degli Ingegneri della provincia di XXXXXXX con il numero di matricola ;"}]
[null,"•","di essere dotato di idonea copertura assicurativa ai sensi del D.L. 34/2020 convertito nella L.77/2020, ed in particolare di aver stipulato"]
[null,null,"la polizza professionale n. A121C526113-LB con scadenza al    26/09/2022 con la compagnia assicurativa Lloyd’s Insurance Company S.A., con massimale pari a euro  500.000,00 , e che la medesima polizza è conforme ai requisiti previsti dal comma 14, del D.L. 34/2020 e s.m.i.",null,null,{"$f":"IF(DatiGen!S14<>\"\",DatiGen!S14,\"\")","v":""},null,null,"    con scadenza al",null,null,{"$f":"IF(DatiGen!Y14<>\"\",DatiGen!Y14,\"\")","v":"2025-06-01"},null,", con la  compagnia assicurativa"]
[null,null,{"$f":"IF(DatiGen!S15<>\"\",DatiGen!S15,\"\")","v":""},null,null,null,null,null,null,null,null,"con massimale pari a   euro",null,null,null,{"$f":"DatiGen!Y15","v":1500000}]
[null,null,"e che la medesima polizza è conforme ai requisiti previsti dal comma 14, del D.L. 34/2020 e s.m.i.;"]
[null,"ATTESTA"]
[null,"i requisiti tecnici sulla base del progetto e dell'effettiva realizzazione;"]
[null,"ASSEVERA"]
[null,"la congruità delle spese sostenute ed effettivamente realizzate con riferimento all’intervento sopra specificato, precisando che la Spesa"]
[null,"Detraibile Ammissibile è pari ad EURO",null,null,null,null,{"$f":"IF(Controlli!N61>0,Controlli!N58,Controlli!N60)","v":-10},null,null,{"$f":"IF(Controlli!N61>0,\",\",\".\")","v":"."},{"$f":"IF(Controlli!N61>0,\"rimanendo a Carico Cliente EURO\",\"\")","v":""},null,null,null,{"$f":"IF(Controlli!N61>0,Controlli!N61,\"\")","v":""},null,null,null,{"$f":"IF(Controlli!N61>0,\".\",\"\")","v":""}]
[null,"Ai fini dell'asseverazione della congruità delle spese si è fatto riferimento ai valori massimi per tipologia di intervento determinati con i "]
[null,"criteri previsti dal punto 13,  dell’allegato A al Decreto MISE 6 agosto 2020 (c.d. Decreto Requisiti) ,  emanato in conformità   all’art. 119 "]
[null,"comma 13, lettera a) DL 34/2020 e s.m.i."]
[]
[null,"Paese, Data",null,null,null,null,null,null,null,null,null,null,"In Fede"]
[]
[null,null,null,null,null,null,null,null,null,null,null,null,{"$f":"CONCATENATE(\"(\",E6,\")\")","v":"(Ing.  )"}]
[null,"Allegati:",null,null,null,null,null,null,null,null,null,null,null,null,null,null,null,null,{"$f":"CONCATENATE(\"ACPM  Vers.\",Versione,\" ©2022 SIM srl\")","v":"ACPM  Vers.2024.1.0 ©2022 SIM srl"}]
[null,"- Computo Metrico"]
[null,"- Calcolo Spesa Detraibile Ammissibile"]
[]
[]
[]
[]
[]
[]
[null,"Ai sensi dell’art. 38, D.P.R. 445 del 28 dicembre 2000, la dichiarazione è resa insieme alla fotocopia, non autenticata del documento di identità del dichiarante"]

{"sheet":"Listino Base","index":5,"n_rows":15,"n_cols":6,"rows_kept":15,"cut":false,"hidden":false,"merged":[]}
[]
[null,"Tariffa","Descrizione Estesa","Descrizione Sintetica","U.M.","Prezzo Un."]
[null,"025015a","IMPIANTI DI RISCALDAMENTO CALDAIE A CONDENSAZIONE Generatore termico modulante a condensazione, per installazione murale, per il riscaldamento degli ambienti e predisposto per la produzione sanitaria tramite l'abbinamento ad un accumulo sanitario mono/doppio scambiatore escluso, marcato CE, costituito da: camera di combustione stagna con scambiatore in acciaio inox e alluminio, collettore fumi con raccolta condensa, sifone di scarico, separatore d'aria automatico, valvola di sicurezza 3 bar, ventilatore modulante, circolatore modulante, bruciatore metallico cilindrico a premiscelazione totale modulante a ridotte emissioni inquinanti, valvola servocomandata a tre vie di priorità e sensore di temperatura, rubinetto di riempimento e vaso d'espansione a membrana per circuito riscaldamento, classe NOx6, by-pass automatico, delle seguenti potenzialità, per riscaldamento e produzione acqua calda sanitaria, in opera esclusi i collegamenti elettrici, il collegamento alla canna fumaria, gli accessori per il trattamento acque ed eventuali comandi remoti evoluti, delle seguenti potenzialità:   24 kW","Nuova caldaia da 24 kW","cad",2269.62]
[null,"21.01.25","IMPIANTI DI RISCALDAMENTO BOLLITORI Bollitore orizzontale o verticale murale, termoelettrico, ad intercapedine, con serbatoio in acciaio inox AISI 316, per produzione di acqua calda sanitaria, T massima di accumulo 60 °C, a circolazione naturale o forzata, completamente coibentato, corredato di termostato e termometro e resistenza elettrica termostatata, della capacità di:   80 l","Accumulo sanitario","cad",821.47]
[null,"N.P.001.080","Fornitura e posa in opera di Condotto di esalazione ad elementi prefabbricati in polipropilene speciale (PPS)","Condotto di scarico a tetto","m",68.87]
[null,"025214c","IMPIANTI DI RISCALDAMENTO RADIATORI IN ACCIAIO Radiatore multicolonna in acciaio, altezza 180 cm, ad elementi componibili preassemblati, verniciati RAL 9010, emissione termica con ΔT 50 °C secondo UNI-EN 442, escluso accessori: a 4 colonne, emissione termica 240 ± 5 % W ad elemento:   a 8 elementi","Radiatori Tubolari","cad",556.05999999999995]
[null,"025090b","IMPIANTI DI RISCALDAMENTO TUBI IN RAME Tubo di rame ricotto con isolamento in polietilene espanso a cellule chiuse a bassissima densità senza CFC a finitura esterna corrugata colorata, conformi alla norma EN 1057, resistenza al fuoco classe 1, temperatura d'impiego da -30 °C a +95 °C, in opera comprese le sagomature di percorso, le centrature in asse agli attacchi dei corpi scaldanti, eseguiti a mano e/o con l'ausilio di piegatubi: per impianti di acqua potabile, di riscaldamento e di condizionamento:   12 × 1 mm, spessore isolamento 9 mm","Tubi in rame coibentato sottotraccia per riscaldamento","m",8.65]
[null,"015024d","IMPIANTI IDRO-SANITARI E GAS DOMESTICO TUBI IN RAME Tubo in rame sanitario nudo, per distribuzione di acqua calda e fredda ad uso potabile, con raccordi a pressare conformi alla UNI 11065 Classe 1, dotati di O-ring in EPDM nero premontato (con guida cilindrica per innesto sicuro sulla tubazione e by-pass sulla sede dell'O-ring per l'individuazione dei raccordi non pressati, temperatura max di esercizio 110 °C o pressione massima di esercizio 16 bar), tagliato a misura e posto in opera su staffaggi, all'interno di cavedi o in traccia, compresa quota parte di raccorderia, escluso valvolame, pezzi speciali, staffaggi, coibentazione e opere murarie con pressatura dei raccordi eseguita con appositi elettroutensili:   28 × 1 mm","Tubi in rame a vista per riscaldamento","m",27.53]
[null,"025100a","IMPIANTI DI RISCALDAMENTO ISOLANTI IN LANA DI VETRO Isolamento termico delle tubazioni realizzato con coppelle in lana di vetro trattata con resine termoindurenti, temperatura massima di servizio 660 °C, conducibilità termica λ = 0,035 W/mK, classe di reazione al fuoco A1-s1,d0: spessore 20 mm:   diametro interno 22 mm","Coibentazione Tubi rame a vista per riscaldamento","m",11.14]
[null,"025110b","IMPIANTI DI RISCALDAMENTO COLLETTORI COMPLANARI Collettore complanare costituito da moduli in ottone stampato con attacchi per adattatore tubi di rame, plastica o multistrato, posto in opera con due saracinesche, due valvole di sfogo aria, cassetta di contenimento in lamiera verniciata RAL 9010, con esclusione delle opere murarie: 3/4\"× 16 mm:   lunghezza 140 mm, attacchi n. 4 + 4","Collettore di distribuzione Riscaldamento","cad",466.67]
[null,"A25026b","SCAVI, DEMOLIZIONI, RIMOZIONI E TRASPORTI DEMOLIZIONI, TAGLI, CAROTAGGI, PERFORAZIONI Carotaggio eseguito con carotatrici con motore elettrico o ad aria compressa, per prelievo campioni, perforazione di strutture edili, per prove di laboratorio, collaudi, controlli, restauri, incatenamenti, areazioni, deumidificazioni, posa in opera di impianti, pluviali, scarichi: su pietrame calcareo o siliceo:   diametro foro 70 ÷ 100 mm","Fori per carotaggi linea gas e riscaldamento","cad",267.18]
[null,"015203c","IMPIANTI IDRO-SANITARI E GAS DOMESTICO TUBI GAS Tubo in rame nudo a norma UNI EN 1057 per installazioni gas secondo UNI 7129:2015, UNI 11528 e UNI 8723, con raccordi a pressare conformi alla UNI 11065 Classe 2, contrassegnati GAS MOP5, dotati di O-ring in HNBR giallo premontato (con guida cilindrica per innesto sicuro sulla tubazione e by-pass sulla sede dell'O-ring per l'individuazione dei raccordi non pressati, temperatura massima 70 °C), tagliato a misura e posto in opera su staffaggi, compresa quota parte di raccorderia, esclusi il valvolame, i pezzi speciali e gli staffaggi con pressatura dei raccordi eseguita con idonei elettroutensili:   22 × 1 mm","Tubo linea gas","m",19.79]
[null,"015212a","IMPIANTI IDRO-SANITARI E GAS DOMESTICO VALVOLE GAS Valvola a sfera in ghisa sferoidale GS-40 omologata gas flangiata, PN 16, in opera completa di bulloni e guarnizioni:   diametro 20 mm","Valvole linea gas","cad",120.89]
[null,"015032b","IMPIANTI IDRO-SANITARI E GAS DOMESTICO RIDUTTORI ED AMMORTIZZATORI DI PRESSIONE Riduttore di pressione a membrana con sede compensata attacco filettato con bocchettoni, corpo e calotta in ottone, gruppo filtro intercambiabile, pressione d'ingresso massima 25 bar, pressione a valle regolabile 1,5 ÷ 6 bar, per acqua, aria e gas neutri: senza manometro, dei seguenti diametri:   3/4","Riduttore di pressione gas","cad",113.32]
[null,"A25038b","SCAVI, DEMOLIZIONI, RIMOZIONI E TRASPORTI ESECUZIONE DI TRACCE Tracce nella muratura, eseguite a mano, compresa la chiusura delle tracce e l'avvicinamento del materiale di risulta al luogo di deposito provvisorio, in attesa del trasporto allo scarico: per tracce in muratura di mattoni pieni:   della sezione 101 ÷ 225 cmq","Scavo tracce per passaggio tubazioni riscaldamento","m",30.59]

{"sheet":"Decreto MITE","index":6,"n_rows":0,"n_cols":0,"rows_kept":0,"cut":false,"hidden":false,"merged":[]}

{"sheet":"Allegato A","index":7,"n_rows":85,"n_cols":13,"rows_kept":85,"cut":false,"hidden":false,"merged":[]}
[]
[]
[]
[]
[]
[]
[]
[]
[]
[]
[]
[]
[]
[]
[]
[]
[]
[]
[]
[]
[]
[]
[]
[]
[]
[]
[]
[]
[]
[]
[]
[]
[]
[]
[]
[]
[]
[]
[]
[]
[]
[]
[]
[]
[]
[]
[]
[]
[]
[]
[]
[null,null,null,null,null,null,null,null,"Costo Max","Rif.","U.M.","DL.34/2020","Indicazioni"]
["Isolamento Coperture - Esterno",null,null,null,null,null,null,null,276,"Superficie","mq.",50000,"Fornitura dell’isolante termico, del sistema di ancoraggio, tutti i materiali che concorrono alla realizzazione dell’intonaco esterno di copertura dell’isolante, le tegole, etc. "]
["Isolamento Coperture - Interno",null,null,null,null,null,null,null,120,"Superficie","mq.",50000,"Fornitura dell’isolante termico, del sistema di ancoraggio, tutti i materiali che concorrono alla realizzazione dell’intonaco esterno di copertura dell’isolante, le tegole, etc. "]
["Isolamento Coperture - Copertura ventilata",null,null,null,null,null,null,null,300,"Superficie","mq.",50000,"Fornitura dell’isolante termico, del sistema di ancoraggio, tutti i materiali che concorrono alla realizzazione dell’intonaco esterno di copertura dell’isolante, le tegole, etc. "]
["Isolamento pavimenti - Esterno",null,null,null,null,null,null,null,144,"Superficie","mq.",50000,"Fornitura dell’isolante termico, del sistema di ancoraggio, tutti i materiali che concorrono alla realizzazione dell’intonaco esterno di copertura dell’isolante, la pavimentazione (non di pregio), etc. "]
["Isolamento pavimenti - Interno/Terreno",null,null,null,null,null,null,null,180,"Superficie","mq.",50000,"Fornitura dell’isolante termico, del sistema di ancoraggio, tutti i materiali che concorrono alla realizzazione dell’intonaco esterno di copertura dell’isolante, la pavimentazione (non di pregio), etc. "]
["Isolamento pareti perimetrali - Zone A, B e C - Esterno/Diffusa",null,null,null,null,null,null,null,180,"Superficie","mq.",50000,"Fornitura dell’isolante termico, del sistema di ancoraggio, tutti i materiali che concorrono alla realizzazione dell’intonaco esterno di copertura dell’isolante, etc. "]
["Isolamento pareti perimetrali - Zone A, B e C - Interno",null,null,null,null,null,null,null,96,"Superficie","mq.",50000,"Fornitura dell’isolante termico, del sistema di ancoraggio, tutti i materiali che concorrono alla realizzazione dell’intonaco esterno di copertura dell’isolante, etc. "]
["Isolamento pareti perimetrali - Zone A, B e C - Parete Ventilata",null,null,null,null,null,null,null,240,"Superficie","mq.",50000,"Fornitura dell’isolante termico, del sistema di ancoraggio, tutti i materiali che concorrono alla realizzazione dell’intonaco esterno di copertura dell’isolante, etc. "]
["Isolamento pareti perimetrali - Zone D, E ed F - Esterno/Diffusa",null,null,null,null,null,null,null,195,"Superficie","mq.",50000,"Fornitura dell’isolante termico, del sistema di ancoraggio, tutti i materiali che concorrono alla realizzazione dell’intonaco esterno di copertura dell’isolante, etc. "]
["Isolamento pareti perimetrali - Zone D, E ed F - Interno",null,null,null,null,null,null,null,104,"Superficie","mq.",50000,"Fornitura dell’isolante termico, del sistema di ancoraggio, tutti i materiali che concorrono alla realizzazione dell’intonaco esterno di copertura dell’isolante, etc. "]
["Isolamento pareti perimetrali - Zone D, E ed F - Parete Ventilata",null,null,null,null,null,null,null,260,"Superficie","mq.",50000,"Fornitura dell’isolante termico, del sistema di ancoraggio, tutti i materiali che concorrono alla realizzazione dell’intonaco esterno di copertura dell’isolante, etc. "]
["Sostituzione chiusure trasparenti / Infissi - Zone A, B e C - Serramento",null,null,null,null,null,null,null,660,"Superficie","mq.",54545,"Fornitura di infisso, telaio, controtelaio, celetto, cassonetto, tapparella, rullo avvolgibile, avvolgitore, persiane e, ove previsto, componentistica dell’impianto elettrico, etc."]
["Sostituzione chiusure trasparenti / Infissi - Zone A, B e C - Serramento + chiusura oscurante",null,null,null,null,null,null,null,780,"Superficie","mq.",54545,"Fornitura di infisso, telaio, controtelaio, celetto, cassonetto, tapparella, rullo avvolgibile, avvolgitore, persiane e, ove previsto, componentistica dell’impianto elettrico, etc."]
["Sostituzione chiusure trasparenti / Infissi - Zone D, E ed F - Serramento",null,null,null,null,null,null,null,780,"Superficie","mq.",54545,"Fornitura di infisso, telaio, controtelaio, celetto, cassonetto, tapparella, rullo avvolgibile, avvolgitore, persiane e, ove previsto, componentistica dell’impianto elettrico, etc."]
["Sostituzione chiusure trasparenti / Infissi - Zone D, E ed F - Serramento + chiusura oscurante",null,null,null,null,null,null,null,900,"Superficie","mq.",54545,"Fornitura di infisso, telaio, controtelaio, celetto, cassonetto, tapparella, rullo avvolgibile, avvolgitore, persiane e, ove previsto, componentistica dell’impianto elettrico, etc."]
["Installazione di schermature solari e/o ombreggiamenti mobili ",null,null,null,null,null,null,null,276,"Superficie","mq.",54545,"Fornitura della schermatura solare e/o ombreggiante, il sistema di montaggio e, ove previsto, la componentistica dell’impianto elettrico, etc."]
["Impianti a Collettori Solari - Scoperti",null,null,null,null,null,null,null,900,"Superficie","mq.",54545,"Fornitura del pannello solare, sistema di montaggio, serbatoio di accumulo, componentistica dell’impianto idraulico e, ove previsto, dell’impianto elettrico, i sistemi di pompaggio, etc."]
["Impianti a Collettori Solari - Piani vetrati",null,null,null,null,null,null,null,1200,"Superficie","mq.",54545,"Fornitura del pannello solare, sistema di montaggio, serbatoio di accumulo, componentistica dell’impianto idraulico e, ove previsto, dell’impianto elettrico, i sistemi di pompaggio, etc."]
["Impianti a Collettori Solari - Sottovuoto a concentrazione",null,null,null,null,null,null,null,1500,"Superficie","mq.",54545,"Fornitura del pannello solare, sistema di montaggio, serbatoio di accumulo, componentistica dell’impianto idraulico e, ove previsto, dell’impianto elettrico, i sistemi di pompaggio, etc."]
["Impianti di riscaldamento con caldaie ad acqua a condensazione e/o generatori di aria calda a condensazione Pnom<35kWt",null,null,null,null,null,null,null,240,"Potenza nominale","kWt",30000,"Fornitura della caldaia, canna fumaria e, ove previsto, sistema di termoregolazione evoluti, sistema di pompaggio, sistema di trattamento dell’acqua, componentistica dell’impianto idraulico ed elettrico, compresi serbatoi di accumulo, etc."]
["Impianti di riscaldamento con caldaie ad acqua a condensazione e/o generatori di aria calda a condensazione Pnom>35kWt",null,null,null,null,null,null,null,216,"Potenza nominale","kWt",30000,"Fornitura della caldaia, canna fumaria e, ove previsto, sistema di termoregolazione evoluti, sistema di pompaggio, sistema di trattamento dell’acqua, componentistica dell’impianto idraulico ed elettrico, compresi serbatoi di accumulo, etc."]
["Impianti con micro-cogenaratori (Motore endotermico/altro)",null,null,null,null,null,null,null,3720,"Potenza nominale","kWe",90909,"Fornitura del cogeneratore, canna fumaria, componentistica dell’impianto idraulico (compreso i serbatoi di accumulo), elettrico e di adduzione del combustibile, etc."]
["Impianti con micro-cogenaratori (Celle a combustibile)",null,null,null,null,null,null,null,30000,"Potenza nominale","kWe",90909,"Fornitura del cogeneratore, canna fumaria, componentistica dell’impianto idraulico (compreso i serbatoi di accumulo), elettrico e di adduzione del combustibile, etc."]
["Impianti con Pompe di Calore (a compressione di vapore o ad assorbimento) - aria/aria",null,null,null,null,null,null,null,720,"Potenza nominale","kWt",30000,"Fornitura della pompa di calore, la componentistica comprensiva del circuito del gas frigorigeno, dell’impianto idraulico o aeraulico (compreso i serbatoi di accumulo), elettrico e, ove previsto, di adduzione del gas, etc."]
["Impianti con Pompe di Calore (a compressione di vapore o ad assorbimento) - altro",null,null,null,null,null,null,null,1560,"Potenza nominale","kWt",30000,"Fornitura della pompa di calore, la componentistica comprensiva del circuito del gas frigorigeno, dell’impianto idraulico o aeraulico (compreso i serbatoi di accumulo), elettrico e, ove previsto, di adduzione del gas, etc."]
["Impianti con Pompe di Calore (a gas)",null,null,null,null,null,null,null,1200,"Potenza nominale","kWt",30000,"Fornitura della pompa di calore, la componentistica comprensiva del circuito del gas frigorigeno, dell’impianto idraulico o aeraulico (compreso i serbatoi di accumulo), elettrico e, ove previsto, di adduzione del gas, etc."]
["Impianti con Pompe di Calore (geotermiche)",null,null,null,null,null,null,null,2280,"Potenza nominale","kWt",30000,"Fornitura della pompa di calore, la componentistica comprensiva del circuito del gas frigorigeno, dell’impianto idraulico o aeraulico (compreso i serbatoi di accumulo), elettrico e, ove previsto, di adduzione del gas, etc."]
["Impianti con sistemi ibridi",null,null,null,null,null,null,null,1860,"Potenza nominale","kWt",30000,"Fornitura della caldaia e della pompa di calore, canna fumaria e, ove previsto, sistema di termoregolazione evoluti, sistema di pompaggio, sistema di trattamento dell’acqua, componentistica dell’impianto idraulico ed elettrico, compresi serbatoi di accumulo, circuito del gas frigorigeno, etc."]
["Impianti con generatori di calore alimentati a biomasse combustibili (Pnom < 35kWt)",null,null,null,null,null,null,null,420,"Potenza nominale","kWt",27272,"Fornitura della caldaia, canna fumaria, sistema di abbattimento delle emissioni in atmosfera, sistema di stoccaggio della biomassa, sistema di caricamento della biomassa e, ove previsto, sistema di termoregolazione evoluti, sistema di pompaggio, sistema di trattamento dell’acqua, componentistica dell’impianto idraulico ed elettrico, compresi serbatoi di accumulo, etc."]
["Impianti con generatori di calore alimentati a biomasse combustibili (Pnom > 35kWt)",null,null,null,null,null,null,null,540,"Potenza nominale","kWt",27272,"Fornitura della caldaia, canna fumaria, sistema di abbattimento delle emissioni in atmosfera, sistema di stoccaggio della biomassa, sistema di caricamento della biomassa e, ove previsto, sistema di termoregolazione evoluti, sistema di pompaggio, sistema di trattamento dell’acqua, componentistica dell’impianto idraulico ed elettrico, compresi serbatoi di accumulo, etc."]
["Impianti di produzione di acqua calda sanitaria con Scaldacqua a pompa di calore (fino a 150 litri di accumulo)",null,null,null,null,null,null,null,1200,"Potenza nominale","cad.",27272,"Fornitura dello scaldacqua a pompa di calore, dell’impianto elettrico ed idraulico, etc."]
["Impianti di produzione di acqua calda sanitaria con Scaldacqua a pompa di calore (oltre 150 litri di accumulo)",null,null,null,null,null,null,null,1500,"Potenza nominale","cad.",27272,"Fornitura dello scaldacqua a pompa di calore, dell’impianto elettrico ed idraulico, etc."]
["Installazione di tecnologie di building automation",null,null,null,null,null,null,null,60,"Superficie","mq.",13636,"Fornitura del sistema e la componentistica dell’impianto idraulico ed elettrico, etc"]

{"sheet":"FAQ Enea e MITE","index":8,"n_rows":0,"n_cols":0,"rows_kept":0,"cut":false,"hidden":false,"merged":[]}